bitfinex/quotes_SOLUSD_20250305
["timestamp","ask_amount","ask_price","bid_price","bid_amount"]
[1741164247173,0.03,144.43,144.35,239.34954886]
[1741164247708,26.9537,144.43,144.35,220.6999]
[1741164247998,44.2631,144.43,144.35,220.6999]
[1741164249801,44.2631,144.43,144.35,82.2999]
[1741164251103,44.2631,144.43,144.35,89.2274]
[1741164251487,6.9537,144.43,144.36,18.64964886]
[1741164251887,20.0,144.41,144.36,18.64964886]
[1741164253203,20.0,144.41,144.36,25.57654886]
[1741164254381,26.9539,144.43,144.36,246.27644886]
[1741164254585,26.9539,144.43,144.36,100.94954886]
[1741164254799,26.9539,144.43,144.36,412.94954886]
[1741164254987,26.9253,144.4,144.36,394.2999]
[1741164255388,28.5602,144.4,144.36,82.2999]
[1741164257809,45.8732,144.4,144.36,82.2999]
[1741164258809,45.8732,144.4,144.34,0.033]
[1741164261017,28.5602,144.4,144.34,18.68264886]
[1741164262089,28.5602,144.4,144.34,330.68264886]
[1741164262490,28.5602,144.4,144.34,412.98254886]
[1741164262810,28.5602,144.4,144.34,419.91044886]
[1741164263000,8.5602,144.4,144.34,419.91044886]
[1741164263206,6.9253,144.4,144.34,128.12922392]
[1741164263520,6.9253,144.4,144.34,107.91044886]
[1741164264494,20.0,144.39,144.34,107.91044886]
[1741164264695,20.0,144.39,144.34,246.31044886]
[1741164265828,20.0,144.4,144.34,246.31044886]
[1741164266007,20.0,144.39,144.34,246.31044886]
[1741164266208,20.0,144.39,144.35,312.0]
[1741164266706,6.9242,144.42,144.36,18.64964886]
[1741164266907,8.5059,144.43,144.36,252.28655271]
[1741164267110,0.03,144.43,144.37,13.22132699]
[1741164267288,0.03,144.43,144.39,18.64964886]
[1741164267494,0.03,144.43,144.39,82.2999]
[1741164267924,20.03,144.43,144.39,82.2999]
[1741164268429,20.03,144.43,144.4,18.64964886]
[1741164268609,0.03,144.43,144.4,100.94954886]
[1741164268811,0.03,144.43,144.4,239.34954886]
[1741164269022,0.03,144.43,144.41,6.77122314]
[1741164269208,0.03,144.43,144.42,31.87097585]
[1741164269402,0.03,144.43,144.42,252.57087585]
[1741164269726,0.03,144.43,144.42,551.633872]
[1741164269896,0.03,144.43,144.42,558.558072]
[1741164273826,0.03,144.43,144.42,558.27374886]
[1741164274403,0.03,144.43,144.42,246.27374886]
[1741164278135,0.03,144.43,144.42,246.558072]
[1741164278443,0.03,144.43,144.42,266.74574721]
[1741164278805,0.03,144.55,144.43,0.28432314]
[1741164279017,0.03,144.55,144.49,38.83732407]
[1741164279208,6.948,144.55,144.49,100.94954886]
[1741164279932,6.948,144.55,144.5,6.9204]
[1741164280132,0.03,144.55,144.51,18.64964886]
[1741164281126,0.03,144.55,144.52,0.28432314]
[1741164281323,0.03,144.55,144.52,220.98422314]
[1741164281523,0.03,144.55,144.52,553.17189835]
[1741164282438,0.03,144.55,144.52,532.6999]
[1741164284630,0.03,144.55,144.52,220.6999]
[1741164285508,0.03,144.55,144.52,82.2999]
[1741164292128,0.03,144.55,144.48,82.2999]
[1741164293029,20.0,144.52,144.48,82.2999]
[1741164294064,1.6518,144.54,144.48,82.2999]
[1741164294065,6.9199,144.51,144.48,82.2999]
[1741164294448,20.0,144.49,144.48,82.2999]
[1741164296132,1.6518,144.54,144.48,100.94954886]
[1741164296331,1.6518,144.54,144.49,18.64964886]
[1741164296527,6.9186,144.54,144.49,18.64964886]
[1741164297757,26.948,144.55,144.49,25.57044886]
[1741164298127,26.948,144.55,144.49,18.64964886]
[1741164298331,26.948,144.55,144.48,233.8027]
[1741164298542,26.948,144.55,144.49,18.64964886]
[1741164299463,26.948,144.55,144.49,330.64964886]
[1741164299648,26.948,144.55,144.49,337.57044886]
[1741164300049,0.03,144.55,144.5,0.28432314]
[1741164300366,0.03,144.55,144.54,18.64964886]
[1741164300570,0.03,144.55,144.54,239.34964886]
[1741164301357,0.03,144.55,144.54,220.7]
[1741164301930,0.03,144.55,144.54,239.34964886]
[1741164302955,0.03,144.55,144.54,220.7]
[1741164303153,0.03,144.55,144.54,551.34964886]
[1741164304260,0.03,144.55,144.54,220.7]
[1741164305875,0.03,144.55,144.54,82.3]
[1741164306048,0.03,144.55,144.51,82.3]
[1741164306377,20.0,144.53,144.48,82.3]
[1741164306535,20.0,144.51,144.45,82.3]
[1741164306943,20.0,144.51,144.46,18.64964886]
[1741164307140,20.0,144.51,144.45,82.3]
[1741164307364,20.0,144.51,144.46,18.64964886]
[1741164307745,20.0,144.51,144.46,25.57184886]
[1741164308137,0.03,144.55,144.47,20.31390065]
[1741164308343,0.03,144.55,144.51,18.933972]
[1741164308650,0.03,144.55,144.51,265.86111108]
[1741164308859,0.03,144.55,144.51,245.689372]
[1741164309488,0.03,144.55,144.51,252.608872]
[1741164311272,0.03,144.55,144.51,564.608872]
[1741164311478,0.03,144.55,144.51,584.78061108]
[1741164312574,0.03,144.55,144.51,564.608872]
[1741164315575,0.03,144.55,144.51,584.78061108]
[1741164315984,0.03,144.55,144.53,18.933972]
[1741164316144,0.03,144.55,144.54,20.17173908]
[1741164316350,0.03,144.55,144.54,259.80571108]
[1741164316780,0.03,144.55,144.54,266.72421108]
[1741164318576,0.0001,144.55,144.54,273.25881108]
[1741164318776,0.03,144.58,144.55,18.933972]
[1741164318982,0.03,144.58,144.57,350.82138794]
[1741164319792,0.03,144.58,144.57,357.73838794]
[1741164321153,0.03,144.58,144.57,551.34964886]
[1741164322975,0.03,144.58,144.57,558.550972]
[1741164323361,0.03,144.58,144.57,551.633972]
[1741164323554,0.03,144.58,144.57,551.34964886]
[1741164324081,0.03,144.58,144.57,578.72271108]
[1741164324475,0.03,144.6,144.58,0.28432314]
[1741164324655,0.03,144.6,144.59,40.55730039]
[1741164325259,0.0001,144.6,144.59,269.02340039]
[1741164325493,0.03,144.65,144.6,0.28432314]
[1741164325660,0.03,144.65,144.64,20.17173908]
[1741164325988,0.03,144.65,144.64,239.633972]
[1741164326398,0.03,144.65,144.64,259.80571108]
[1741164326688,0.03,144.65,144.64,271.99941108]
[1741164326892,0.03,144.65,144.64,250.959372]
[1741164327066,0.03,144.65,144.64,244.62964886]
[1741164327416,0.03,144.65,144.64,82.3]
[1741164327570,0.03,144.65,144.64,394.3]
[1741164328092,0.03,144.65,144.64,82.3]
[1741164328571,6.9432,144.65,144.64,82.3]
[1741164329075,6.9432,144.65,144.61,220.7]
[1741164329257,6.9432,144.65,144.61,82.3]
[1741164329461,24.2262,144.65,144.61,82.3]
[1741164329690,0.03,144.65,144.61,82.3]
[1741164329991,0.03,144.65,144.62,18.64964886]
[1741164331092,0.03,144.65,144.62,330.64964886]
[1741164332903,0.03,144.65,144.62,551.34964886]
[1741164333281,0.03,144.65,144.62,394.3]
[1741164334514,20.03,144.65,144.62,82.3]
[1741164335595,6.9137,144.64,144.62,82.3]
[1741164336711,20.03,144.65,144.62,82.3]
[1741164337013,0.03,144.65,144.62,82.3]
[1741164337198,6.9432,144.65,144.62,82.3]
[1741164337514,6.9432,144.65,144.64,312.0]
[1741164337719,6.9432,144.65,144.64,394.3]
[1741164338012,26.9432,144.65,144.64,82.3]
[1741164339916,20.0,144.62,144.6,0.033]
[1741164341189,20.0,144.62,144.53,323.6214]
[1741164341190,20.0,144.61,144.53,323.6214]
[1741164341391,20.0,144.61,144.52,1.5109]
[1741164341392,20.0,144.59,144.52,46.9405]
[1741164341697,26.917,144.57,144.52,46.9405]
[1741164343714,8.5237,144.58,144.52,46.9405]
[1741164343913,8.5237,144.58,144.53,18.64964886]
[1741164344218,1.6071,144.58,144.53,18.64964886]
[1741164344514,6.9157,144.6,144.53,536.16188794]
[1741164344719,7.9073,144.63,144.53,536.16188794]
[1741164344932,20.0,144.6,144.53,203.99014886]
[1741164345215,7.9073,144.63,144.53,224.16188794]
[1741164345422,0.03,144.65,144.58,0.28432314]
[1741164345590,0.03,144.65,144.6,18.64964886]
[1741164345793,0.03,144.65,144.6,45.73698794]
[1741164346197,0.03,144.65,144.6,72.50574886]
[1741164346404,0.03,144.65,144.6,92.67748794]
[1741164346599,20.03,144.65,144.6,104.72401432]
[1741164346838,20.03,144.65,144.6,72.50574886]
[1741164347207,0.03,144.65,144.6,72.50574886]
[1741164347452,20.0,144.64,144.6,65.59014886]
[1741164347933,6.9435,144.65,144.61,312.0]
[1741164348137,6.9435,144.65,144.61,358.9405]
[1741164348728,20.0,144.62,144.59,46.9405]
[1741164350016,26.9145,144.63,144.59,46.9405]
[1741164350607,26.9145,144.63,144.55,46.9405]
[1741164350608,1.6618,144.62,144.55,46.9405]
[1741164350909,1.6618,144.62,144.53,46.9405]
[1741164350910,20.0,144.59,144.53,46.9405]
[1741164351839,20.0,144.59,144.53,358.9405]
[1741164352037,6.9165,144.58,144.53,358.9405]
[1741164354240,26.9162,144.59,144.54,18.64964886]
[1741164354938,20.0,144.59,144.54,239.34964886]
[1741164355342,6.9151,144.61,144.54,271.56791432]
[1741164355643,20.0,144.61,144.55,32.5025886]
[1741164355938,1.6618,144.62,144.56,50.86791432]
[1741164356134,10.85943419,144.65,144.59,18.64964886]
[1741164356337,10.85943419,144.65,144.59,246.26574886]
[1741164356338,6.9138,144.64,144.59,246.26574886]
[1741164357221,0.03,144.65,144.59,246.26574886]
[1741164357417,0.03,144.65,144.62,18.64964886]
[1741164357617,0.03,144.65,144.62,100.94964886]
[1741164358642,0.03,144.65,144.62,82.3]
[1741164358848,20.03,144.65,144.62,82.3]
[1741164360343,26.9434,144.65,144.62,82.3]
[1741164361949,20.03,144.65,144.62,82.3]
[1741164362141,26.9435,144.65,144.6,0.033]
[1741164362324,26.9435,144.65,144.61,18.64964886]
[1741164363338,26.9435,144.65,144.62,312.0]
[1741164363931,0.03,144.65,144.62,312.0]
[1741164364138,0.03,144.65,144.63,18.64964886]
[1741164365055,0.03,144.65,144.61,18.933972]
[1741164365452,0.03,144.65,144.61,25.848972]
[1741164365639,0.03,144.65,144.61,246.548972]
[1741164365955,0.03,144.65,144.61,239.34964886]
[1741164366532,0.03,144.65,144.61,220.7]
[1741164367472,6.9137,144.64,144.6,0.033]
[1741164367752,20.0,144.61,144.6,0.033]
[1741164368460,20.0,144.59,144.54,82.3]
[1741164369269,20.0,144.58,144.5,82.3]
[1741164369469,6.918,144.55,144.5,82.3]
[1741164370679,20.0,144.56,144.5,89.2202]
[1741164370863,20.0,144.56,144.5,82.3]
[1741164372363,26.9175,144.56,144.5,82.3]
[1741164373959,26.9175,144.56,144.5,82.333]
[1741164375178,82.9,144.57,144.5,82.333]
[1741164375383,82.9,144.57,144.5,89.2533]
[1741164375890,20.0,144.54,144.5,401.2533]
[1741164376669,20.0,144.54,144.5,82.333]
[1741164376670,21.5439,144.54,144.5,82.333]
[1741164377880,21.5439,144.54,144.5,0.033]
[1741164377881,6.9194,144.52,144.5,0.033]
[1741164379784,7.06206157,144.51,144.5,0.033]
[1741164382980,20.0,144.48,144.45,0.033]
[1741164383179,20.0,144.47,144.45,0.033]
[1741164383775,20.0,144.46,144.45,0.033]
[1741164384362,24.2197,144.51,144.45,0.033]
[1741164384868,20.0,144.48,144.45,0.033]
[1741164385690,20.0,144.48,144.45,312.033]
[1741164385885,89.8196,144.52,144.45,394.333]
[1741164386095,6.9196,144.52,144.45,114.55126546]
[1741164386590,6.9196,144.52,144.45,82.333]
[1741164386788,18.8411,144.54,144.45,82.333]
[1741164386980,6.9189,144.53,144.46,6.9223]
[1741164388578,6.9189,144.53,144.47,6.6127]
[1741164388788,100.1937,144.57,144.48,18.64964886]
[1741164388978,20.0,144.54,144.48,100.94964886]
[1741164389276,20.0,144.54,144.51,312.0]
[1741164390991,26.9185,144.54,144.51,312.0]
[1741164392273,100.1937,144.57,144.48,140.08911432]
[1741164392274,6.9175,144.56,144.48,140.08911432]
[1741164392482,6.9175,144.56,144.5,18.64964886]
[1741164393375,1.6217,144.58,144.5,18.64964886]
[1741164393376,6.917,144.57,144.5,18.64964886]
[1741164394480,6.917,144.57,144.5,25.56994886]
[1741164395178,6.917,144.57,144.54,312.0]
[1741164395379,20.0,144.57,144.54,312.0]
[1741164395900,20.0,144.57,144.52,89.2193]
[1741164396400,20.0,144.57,144.52,82.3]
[1741164396984,20.0,144.57,144.53,18.64964886]
[1741164397182,6.9456,144.6,144.53,18.64964886]
[1741164397386,6.9456,144.6,144.53,100.94964886]
[1741164397885,6.9456,144.6,144.53,107.86854886]
[1741164398087,6.9456,144.6,144.53,246.26854886]
[1741164398287,6.9456,144.6,144.54,6.1708]
[1741164398711,6.9456,144.6,144.57,312.0]
[1741164399808,20.0,144.58,144.57,312.0]
[1741164399976,20.0,144.57,144.52,82.3]
[1741164400873,20.0,144.57,144.52,89.2193]
[1741164401384,20.0,144.57,144.53,18.64964886]
[1741164401707,26.917,144.57,144.53,18.64964886]
[1741164402074,20.0,144.57,144.53,18.64964886]
[1741164402279,26.9171,144.57,144.53,18.64964886]
[1741164402528,26.9171,144.57,144.52,82.3]
[1741164403004,26.9171,144.57,144.55,312.0]
[1741164404008,20.0,144.57,144.55,312.0]
[1741164406322,6.9457,144.6,144.55,89.2179]
[1741164406529,0.03,144.6,144.55,89.2179]
[1741164406892,6.9456,144.6,144.55,82.3]
[1741164407216,24.2346,144.6,144.55,82.3]
[1741164409528,26.917,144.57,144.56,312.0]
[1741164410628,44.2096,144.57,144.53,5.26]
[1741164411795,44.2096,144.57,144.52,82.3]
[1741164411996,44.2096,144.57,144.5,82.333]
[1741164412219,0.14216157,144.56,144.5,82.333]
[1741164413495,20.0,144.53,144.5,0.033]
[1741164413697,6.9194,144.52,144.5,0.033]
[1741164415630,20.0,144.51,144.5,0.033]
[1741164417032,6.9194,144.52,144.5,0.033]
[1741164419035,20.0,144.51,144.5,0.033]
[1741164419346,20.0,144.51,144.47,82.3]
[1741164420345,20.0,144.51,144.45,82.333]
[1741164420551,20.0,144.49,144.45,82.333]
[1741164420752,20.0,144.49,144.45,0.033]
[1741164421246,20.0,144.46,144.45,0.033]
[1741164422721,82.9,144.52,144.45,82.333]
[1741164423043,89.8196,144.52,144.45,82.333]
[1741164423248,0.14216157,144.51,144.45,82.333]
[1741164423546,20.0,144.49,144.45,82.333]
[1741164424628,89.8194,144.52,144.45,109.41572897]
[1741164424828,6.9194,144.52,144.45,109.41572897]
[1741164425028,6.9194,144.52,144.45,82.333]
[1741164425549,6.9194,144.52,144.45,89.2558]
[1741164425848,6.9194,144.52,144.45,82.333]
[1741164426049,6.9194,144.52,144.46,18.64964886]
[1741164426217,28.12563419,144.55,144.46,239.34964886]
[1741164426424,6.9181,144.55,144.48,38.80977783]
[1741164426626,6.9181,144.55,144.48,259.50977783]
[1741164427151,6.9181,144.55,144.48,266.43097783]
[1741164427330,8.5521,144.56,144.48,266.43097783]
[1741164428747,6.9176,144.56,144.48,266.43097783]
[1741164428951,6.9176,144.56,144.5,18.64964886]
[1741164429156,6.9176,144.56,144.5,100.94964886]
[1741164429157,20.0,144.56,144.5,100.94964886]
[1741164429339,20.0,144.55,144.51,6.9199]
[1741164429541,6.9165,144.58,144.52,18.64964886]
[1741164429857,6.9165,144.58,144.53,6.1015]
[1741164430039,6.9162,144.59,144.53,88.4015]
[1741164430240,6.9457,144.6,144.54,38.80977783]
[1741164430453,0.03,144.6,144.55,20.16012897]
[1741164430651,20.03,144.6,144.56,18.64964886]
[1741164430951,0.03,144.6,144.56,99.94964886]
[1741164431539,20.0,144.59,144.56,99.94964886]
[1741164433238,20.0,144.59,144.56,411.94964886]
[1741164433436,0.03,144.6,144.56,411.94964886]
[1741164433641,6.9458,144.6,144.56,411.94964886]
[1741164434456,6.9458,144.6,144.56,82.3]
[1741164434854,20.0,144.57,144.53,88.4015]
[1741164436653,17.2917,144.58,144.53,88.4015]
[1741164436969,20.0,144.55,144.51,82.3]
[1741164437180,20.0,144.55,144.49,88.6934]
[1741164437740,20.0,144.55,144.49,82.3]
[1741164438777,24.2147,144.54,144.49,82.3]
[1741164439342,20.0,144.51,144.45,247.06374886]
[1741164439541,20.0,144.51,144.45,108.66374886]
[1741164439761,20.0,144.51,144.45,107.09384886]
[1741164440872,20.0,144.51,144.45,419.09384886]
[1741164441168,6.9204,144.5,144.45,419.09384886]
[1741164441355,26.92,144.51,144.46,18.64964886]
[1741164441676,26.92,144.51,144.46,38.80977783]
[1741164442159,6.9194,144.53,144.46,38.80977783]
[1741164442365,6.9194,144.53,144.48,18.64964886]
[1741164442674,6.9175,144.56,144.51,18.64964886]
[1741164442879,6.9175,144.56,144.51,121.10977783]
[1741164443057,20.0,144.57,144.51,100.94964886]
[1741164443367,20.0,144.56,144.51,100.94964886]
[1741164445166,26.9179,144.56,144.51,412.94964886]
[1741164446685,0.03,144.6,144.52,26.93295211]
[1741164446896,0.03,144.6,144.54,38.80977783]
[1741164447072,20.03,144.6,144.55,27.07802897]
[1741164447275,0.03,144.6,144.55,109.37802897]
[1741164447989,20.03,144.6,144.55,102.46012897]
[1741164448292,20.0,144.59,144.55,82.3]
[1741164449289,6.9165,144.58,144.55,82.3]
[1741164449483,20.0,144.56,144.55,82.3]
[1741164449682,20.0,144.55,144.52,88.7885]
[1741164449987,20.0,144.55,144.51,312.0]
[1741164450198,20.0,144.55,144.5,220.733]
[1741164451464,6.9185,144.54,144.5,220.733]
[1741164451991,6.9185,144.54,144.5,0.033]
[1741164452382,24.2147,144.54,144.5,0.033]
[1741164453090,6.9185,144.54,144.5,0.033]
[1741164455470,6.9181,144.55,144.5,0.033]
[1741164455675,20.0,144.53,144.5,0.033]
[1741164456191,6.9161,144.59,144.5,220.87516157]
[1741164456398,6.9161,144.59,144.54,0.14216157]
[1741164456572,6.9161,144.59,144.54,82.3]
[1741164456972,20.0,144.56,144.54,82.3]
[1741164457374,17.2902,144.59,144.54,82.3]
[1741164457604,17.2902,144.59,144.51,82.3]
[1741164457605,20.0,144.56,144.51,82.3]
[1741164459072,20.0,144.54,144.5,0.033]
[1741164459288,6.917,144.57,144.5,6.9533]
[1741164459504,6.917,144.57,144.51,18.64964886]
[1741164459675,6.917,144.57,144.51,100.94964886]
[1741164459873,6.917,144.57,144.51,133.23288194]
[1741164460101,6.917,144.57,144.51,100.94964886]
[1741164460671,20.0,144.57,144.51,100.94964886]
[1741164460871,20.0,144.56,144.51,100.94964886]
[1741164462589,20.0,144.56,144.51,82.3]
[1741164462792,24.213,144.55,144.5,0.033]
[1741164465402,6.918,144.55,144.5,0.033]
[1741164466304,20.0,144.52,144.5,0.033]
[1741164467207,6.9199,144.51,144.5,0.033]
[1741164473807,6.9199,144.51,144.5,0.0001]
[1741164474118,20.0,144.48,144.45,0.033]
[1741164475823,26.9215,144.48,144.45,0.033]
[1741164479210,6.9215,144.48,144.45,0.033]
[1741164479808,6.9208,144.49,144.45,0.033]
[1741164480009,6.9194,144.52,144.46,20.17841653]
[1741164480189,6.9194,144.52,144.47,18.64964886]
[1741164480702,6.9194,144.52,144.46,108.59581653]
[1741164481013,20.0,144.5,144.47,18.64964886]
[1741164481409,20.0,144.5,144.46,88.4174]
[1741164481713,20.0,144.5,144.45,0.033]
[1741164483002,20.0,144.5,144.46,0.033]
[1741164483208,20.0,144.47,144.46,0.033]
[1741164485231,26.9218,144.47,144.46,0.033]
[1741164487330,6.9218,144.47,144.46,0.033]
[1741164487519,6.9199,144.51,144.46,102.51141653]
[1741164487716,6.9189,144.53,144.47,18.64964886]
[1741164487896,6.9189,144.53,144.47,100.94964886]
[1741164488105,21.68886839,144.56,144.5,6.3342]
[1741164488315,17.74743419,144.55,144.5,88.6342]
[1741164488705,20.0,144.52,144.5,82.3]
[1741164489029,20.0,144.52,144.47,82.3]
[1741164489232,20.0,144.52,144.46,5.293]
[1741164489233,20.0,144.51,144.46,5.293]
[1741164489412,20.0,144.51,144.46,0.033]
[1741164489908,20.0,144.5,144.46,0.033]
[1741164490228,20.0,144.47,144.46,0.033]
[1741164492508,26.9218,144.47,144.46,0.033]
[1741164494007,26.9218,144.47,144.46,0.0001]
[1741164494302,27.20612314,144.47,144.46,0.0001]
[1741164495325,27.20612314,144.47,144.44,0.0001]
[1741164495326,1.5523,144.45,144.44,0.0001]
[1741164496626,8.4751,144.45,144.44,0.0001]
[1741164497128,82.9,144.46,144.44,0.0001]
[1741164497700,20.0,144.45,144.44,0.0001]
[1741164498308,6.9224,144.46,144.44,0.0001]
[1741164498697,26.9219,144.47,144.44,0.0001]
[1741164498914,1.5697,144.49,144.44,0.0001]
[1741164499118,6.9505,144.5,144.45,18.64964886]
[1741164499328,0.03,144.5,144.45,18.64964886]
[1741164499509,6.9505,144.5,144.45,18.64964886]
[1741164500424,0.03,144.5,144.45,350.82806539]
[1741164500613,0.03,144.5,144.46,20.17841653]
[1741164500814,20.03,144.5,144.46,20.17841653]
[1741164501003,20.03,144.5,144.46,102.47841653]
[1741164501418,20.03,144.5,144.46,82.3]
[1741164503429,0.03,144.5,144.47,18.64964886]
[1741164503634,0.03,144.5,144.49,24.78134886]
[1741164503932,0.03,144.5,144.49,127.40192696]
[1741164504513,0.03,144.5,144.49,265.80192696]
[1741164504820,0.03,144.56,144.5,0.14216157]
[1741164505023,0.03,144.56,144.52,20.3205781]
[1741164505329,0.03,144.56,144.53,38.82806539]
[1741164505511,0.03,144.56,144.55,45.27462696]
[1741164505715,0.03,144.56,144.55,46.98888853]
[1741164506433,0.03,144.56,144.55,6.3044]
[1741164506643,0.03,144.56,144.55,318.3044]
[1741164508227,0.03,144.56,144.55,312.0]
[1741164508425,0.03,144.56,144.53,82.3]
[1741164509836,0.03,144.56,144.54,18.64964886]
[1741164510211,0.03,144.56,144.53,82.3]
[1741164514232,20.03,144.56,144.53,82.3]
[1741164514434,0.03,144.56,144.53,82.3]
[1741164517239,20.03,144.56,144.51,226.727]
[1741164518736,26.918,144.55,144.51,82.3]
[1741164518941,26.918,144.55,144.5,0.033]
[1741164520632,44.213,144.55,144.5,0.033]
[1741164522059,133.2335,144.55,144.5,0.033]
[1741164522248,1.5557,144.54,144.5,0.033]
[1741164522934,24.2163,144.53,144.5,0.033]
[1741164523137,20.0,144.51,144.5,0.033]
[1741164523358,6.9189,144.53,144.5,0.033]
[1741164524529,6.9186,144.54,144.5,0.033]
[1741164524729,6.9186,144.54,144.5,82.333]
[1741164524936,17.3248,144.56,144.5,394.333]
[1741164525241,0.03,144.56,144.51,24.75364886]
[1741164529157,0.03,144.56,144.51,245.45364886]
[1741164532664,6.9475,144.56,144.51,245.45364886]
[1741164533344,6.9475,144.56,144.51,557.45364886]
[1741164534469,0.03,144.56,144.51,557.45364886]
[1741164535143,0.03,144.56,144.52,0.28432314]
[1741164535344,0.03,144.56,144.54,1.6293]
[1741164535551,0.03,144.56,144.55,18.64964886]
[1741164536348,0.03,144.56,144.54,82.3]
[1741164537759,0.03,144.56,144.55,18.64964886]
[1741164538256,0.03,144.56,144.55,330.64964886]
[1741164539168,0.03,144.56,144.55,330.933972]
[1741164539566,0.03,144.56,144.55,330.64964886]
[1741164539767,0.03,144.56,144.54,82.3]
[1741164541563,0.03,144.56,144.55,18.64964886]
[1741164542754,0.03,144.56,144.55,330.64964886]
[1741164543155,0.03,144.56,144.55,413.233972]
[1741164543356,0.03,144.56,144.55,121.39825744]
[1741164543765,0.03,144.56,144.55,259.79825744]
[1741164544074,0.03,144.56,144.55,266.30035744]
[1741164544871,0.03,144.56,144.55,246.136072]
[1741164546567,0.03,144.56,144.55,578.30035744]
[1741164547460,0.03,144.6,144.57,18.64964886]
[1741164547784,0.03,144.6,144.59,38.8139343]
[1741164548880,0.03,144.6,144.59,18.64964886]
[1741164549566,0.03,144.6,144.59,38.8139343]
[1741164550077,0.03,144.6,144.59,39.09825744]
[1741164550282,0.03,144.6,144.59,266.27965744]
[1741164550572,0.03,144.6,144.59,578.27965744]
[1741164553582,0.03,144.6,144.59,585.19575744]
[1741164554579,0.03,144.65,144.6,20.933972]
[1741164554785,0.03,144.65,144.64,20.44860858]
[1741164554969,0.03,144.65,144.64,241.14860858]
[1741164555174,0.03,144.65,144.64,259.79825744]
[1741164556784,0.03,144.65,144.64,246.117772]
[1741164557093,0.03,144.65,144.64,273.19575744]
[1741164557494,0.03,144.7,144.68,20.28432314]
[1741164557689,0.03,144.7,144.69,337.68860858]
[1741164557993,0.03,144.7,144.69,362.58715744]
[1741164558862,0.03,144.7,144.69,369.49845744]
[1741164559061,0.03,144.7,144.69,590.19845744]
[1741164559262,0.03,144.75,144.72,18.933972]
[1741164559488,0.03,144.75,144.74,39.09825744]
[1741164559894,0.03,144.75,144.74,259.79825744]
[1741164560063,0.03,144.75,144.74,267.83565744]
[1741164560264,311.53227295,144.9,144.89,2.0]
[1741164560467,153.46170466,144.9,144.89,282.58701164]
[1741164560671,153.46170466,144.9,144.89,290.31422023]
[1741164560871,129.69170466,144.9,144.89,246.86860858]
[1741164561264,34.53982953,145.05,144.89,246.86860858]
[1741164561265,64.74487162,144.93,144.9,0.14216157]
[1741164561466,64.74487162,144.93,144.91,0.14216157]
[1741164561691,64.74487162,144.93,144.91,220.84216157]
[1741164561885,64.74487162,144.93,144.92,18.933972]
[1741164562088,64.74487162,144.93,144.92,259.79825744]
[1741164562293,21.46903077,144.93,144.92,149.91666264]
[1741164562466,21.46903077,144.93,144.92,247.98809176]
[1741164562667,21.46903077,144.93,144.92,278.03303023]
[1741164562873,21.46903077,144.93,144.92,276.77125034]
[1741164563183,20.0,145.06,144.93,0.14216157]
[1741164563388,20.0,145.02,144.96,0.14216157]
[1741164563592,20.0,145.02,144.96,220.84216157]